[Event "*** Titled Tuesday Blitz"]
[Site "Chess.com"]
[Date "2020.05.26"]
[Round "5"]
[White "ZarinaShafigullina"]
[Black "jd001"]
[Result "1-0"]
[WhiteElo "2341"]
[BlackElo "2171"]
[TimeControl "180+1"]
[EndTime "10:52:56 PDT"]
[Termination "ZarinaShafigullina won by resignation"]

1. d4 {[%clk 0:03:00.9]} 1... e6 {[%clk 0:02:59.3]} 2. Nf3 {[%clk 0:03:01.8]}
2... f5 {[%clk 0:02:58.9]} 3. g3 {[%clk 0:03:01.9]} 3... Nf6 {[%clk 0:02:59.3]}
4. Bg2 {[%clk 0:03:02.4]} 4... Be7 {[%clk 0:02:59.9]} 5. O-O {[%clk 0:03:03]}
5... O-O {[%clk 0:03:00.5]} 6. c4 {[%clk 0:03:03.7]} 6... d6 {[%clk 0:03:00.8]}
7. Nc3 {[%clk 0:03:04.3]} 7... Ne4 {[%clk 0:03:01]} 8. Qc2 {[%clk 0:03:01.7]}
8... Nxc3 {[%clk 0:03:00.3]} 9. Qxc3 {[%clk 0:03:01.8]} 9... Bf6 {[%clk
0:03:00.8]} 10. Re1 {[%clk 0:03:01.4]} 10... c5 {[%clk 0:02:57.7]} 11. Be3
{[%clk 0:02:57.9]} 11... Qc7 {[%clk 0:02:53.2]} 12. Rac1 {[%clk 0:02:56.6]}
12... Nc6 {[%clk 0:02:51]} 13. Qd2 {[%clk 0:02:56.2]} 13... b6 {[%clk
0:02:41.2]} 14. d5 {[%clk 0:02:49.4]} 14... Ne7 {[%clk 0:02:26.9]} 15. dxe6
{[%clk 0:02:44.7]} 15... Bxe6 {[%clk 0:02:22.2]} 16. Ng5 {[%clk 0:02:44.4]}
16... Bxg5 {[%clk 0:02:17.7]} 17. Bxa8 {[%clk 0:02:43.8]} 17... Bxe3 {[%clk
0:02:16.6]} 18. Qxe3 {[%clk 0:02:43.4]} 18... Bxc4 {[%clk 0:02:07.5]} 19. Rxc4
{[%clk 0:02:34.8]} 19... Rxa8 {[%clk 0:02:06.5]} 20. Qe6+ {[%clk 0:02:34.8]}
20... Kf8 {[%clk 0:02:03.4]} 21. Rh4 {[%clk 0:02:32.6]} 21... h6 {[%clk
0:01:53.7]} 22. e4 {[%clk 0:02:32.1]} 22... fxe4 {[%clk 0:01:08.5]} 23. Rf4+
{[%clk 0:02:22.1]} 23... Ke8 {[%clk 0:01:06.1]} 24. Rfxe4 {[%clk 0:02:20.8]} 1-0

[Event "*** Titled Tuesday Blitz"]
[Site "Chess.com"]
[Date "2020.05.26"]
[Round "5"]
[White "mrkvoz"]
[Black "Tayson_7"]
[Result "0-1"]
[WhiteElo "2825"]
[BlackElo "2632"]
[TimeControl "180+1"]
[EndTime "10:52:57 PDT"]
[Termination "Tayson_7 won by resignation"]

1. e4 {[%clk 0:03:00.9]} 1... e5 {[%clk 0:02:58.4]} 2. Nf3 {[%clk 0:03:00.4]}
2... Nc6 {[%clk 0:02:58.9]} 3. d4 {[%clk 0:03:00.1]} 3... exd4 {[%clk
0:02:55.8]} 4. Nxd4 {[%clk 0:03:01]} 4... Nf6 {[%clk 0:02:55.2]} 5. Nxc6 {[%clk
0:03:01]} 5... bxc6 {[%clk 0:02:56.1]} 6. Bd3 {[%clk 0:03:01.3]} 6... d5 {[%clk
0:02:54.7]} 7. exd5 {[%clk 0:03:02.2]} 7... cxd5 {[%clk 0:02:55.6]} 8. O-O
{[%clk 0:03:02.7]} 8... Be7 {[%clk 0:02:54.3]} 9. c4 {[%clk 0:03:02.9]} 9... d4
{[%clk 0:02:48.7]} 10. Bg5 {[%clk 0:03:02.3]} 10... O-O {[%clk 0:02:48.8]} 11.
Nd2 {[%clk 0:03:02.6]} 11... Bb7 {[%clk 0:02:47.8]} 12. Re1 {[%clk 0:02:58.9]}
12... h6 {[%clk 0:02:44.1]} 13. Bxf6 {[%clk 0:02:55.8]} 13... Bxf6 {[%clk
0:02:45]} 14. b4 {[%clk 0:02:56.1]} 14... a5 {[%clk 0:02:37]} 15. b5 {[%clk
0:02:56]} 15... Qd6 {[%clk 0:02:29]} 16. Be4 {[%clk 0:02:55.6]} 16... c6 {[%clk
0:02:12.6]} 17. Rc1 {[%clk 0:02:16.7]} 17... Qc7 {[%clk 0:02:00.9]} 18. a4
{[%clk 0:02:08.5]} 18... Rad8 {[%clk 0:01:56.6]} 19. Qf3 {[%clk 0:02:06.8]}
19... Bg5 {[%clk 0:01:52.4]} 20. Rcd1 {[%clk 0:01:54.3]} 20... Rfe8 {[%clk
0:01:52.1]} 21. g3 {[%clk 0:01:51.4]} 21... Bxd2 {[%clk 0:01:48.5]} 22. Rxd2
{[%clk 0:01:50.8]} 22... cxb5 {[%clk 0:01:48.4]} 23. cxb5 {[%clk 0:01:45.6]}
23... Bxe4 {[%clk 0:01:46.6]} 24. Rxe4 {[%clk 0:01:45.6]} 24... Rxe4 {[%clk
0:01:46.6]} 25. Qxe4 {[%clk 0:01:45]} 25... Qc1+ {[%clk 0:01:46.1]} 26. Qe1
{[%clk 0:01:42]} 26... Qxe1+ {[%clk 0:01:45.8]} 0-1

[Event "*** Titled Tuesday Blitz"]
[Site "Chess.com"]
[Date "2020.05.26"]
[Round "5"]
[White "AwareIdea"]
[Black "abubakrtagelsir"]
[Result "1-0"]
[WhiteElo "2508"]
[BlackElo "2315"]
[TimeControl "180+1"]
[EndTime "10:53:09 PDT"]
[Termination "AwareIdea won by resignation"]

1. c4 {[%clk 0:03:00.9]} 1... Nf6 {[%clk 0:02:59.7]} 2. Nc3 {[%clk 0:03:00.1]}
2... g6 {[%clk 0:02:59.7]} 3. d4 {[%clk 0:02:56.6]} 3... Bg7 {[%clk 0:02:59.4]}
4. e4 {[%clk 0:02:56.6]} 4... d6 {[%clk 0:02:59.6]} 5. Nf3 {[%clk 0:02:57.1]}
5... O-O {[%clk 0:02:58.9]} 6. h3 {[%clk 0:02:57.5]} 6... e5 {[%clk 0:02:55.4]}
7. d5 {[%clk 0:02:57.6]} 7... a5 {[%clk 0:02:53.5]} 8. Be3 {[%clk 0:02:56.9]}
8... Na6 {[%clk 0:02:52.6]} 9. g4 {[%clk 0:02:56.6]} 9... Nd7 {[%clk 0:02:48.4]}
10. Nd2 {[%clk 0:02:56]} 10... f5 {[%clk 0:02:46.3]} 11. gxf5 {[%clk 0:02:55.3]}
11... gxf5 {[%clk 0:02:46.4]} 12. exf5 {[%clk 0:02:53.5]} 12... Qh4 {[%clk
0:02:41.5]} 13. Qg4 {[%clk 0:02:46.1]} 13... Qf6 {[%clk 0:02:35.2]} 14. Rg1
{[%clk 0:02:43.1]} 14... Ndc5 {[%clk 0:02:30.8]} 15. Nde4 {[%clk 0:02:34.5]}
15... Nxe4 {[%clk 0:02:07.8]} 16. Nxe4 {[%clk 0:02:35.4]} 16... Qf7 {[%clk
0:02:06.8]} 17. Bh6 {[%clk 0:02:27.8]} 17... Bxf5 {[%clk 0:02:05.5]} 18. Qxg7+
{[%clk 0:02:27.2]} 18... Qxg7 {[%clk 0:02:04.5]} 19. Rxg7+ {[%clk 0:02:28.1]}
19... Kh8 {[%clk 0:02:04.7]} 20. Ng3 {[%clk 0:02:23.3]} 20... Nb4 {[%clk
0:01:59.4]} 21. Kd2 {[%clk 0:02:19]} 21... Rf6 {[%clk 0:01:51.5]} 22. Nxf5
{[%clk 0:02:13.9]} 22... Rxf5 {[%clk 0:01:50.5]} 23. Rg2 {[%clk 0:02:11]} 23...
Rg8 {[%clk 0:01:46.2]} 24. Rxg8+ {[%clk 0:02:09]} 24... Kxg8 {[%clk 0:01:45.2]}
25. Be3 {[%clk 0:02:09.9]} 25... Kf7 {[%clk 0:01:42]} 26. a3 {[%clk 0:02:09.6]}
26... Na6 {[%clk 0:01:42]} 27. Bd3 {[%clk 0:02:04.4]} 27... Rh5 {[%clk 0:01:41]}
28. Rh1 {[%clk 0:02:02.5]} 28... Nb8 {[%clk 0:01:38.2]} 29. h4 {[%clk
0:02:01.2]} 29... Nd7 {[%clk 0:01:36.6]} 30. Be2 {[%clk 0:02:01]} 1-0

[Event "*** Titled Tuesday Blitz"]
[Site "Chess.com"]
[Date "2020.05.26"]
[Round "5"]
[White "Aleksandar-Topalov"]
[Black "axvesik"]
[Result "1-0"]
[WhiteElo "2376"]
[BlackElo "2529"]
[TimeControl "180+1"]
[EndTime "10:53:32 PDT"]
[Termination "Aleksandar-Topalov won by resignation"]

1. b3 {[%clk 0:03:00.9]} 1... e5 {[%clk 0:02:59.1]} 2. Bb2 {[%clk 0:03:00.6]}
2... Nc6 {[%clk 0:02:59.4]} 3. c4 {[%clk 0:03:00.4]} 3... Nf6 {[%clk 0:02:58.7]}
4. e3 {[%clk 0:03:00.8]} 4... d6 {[%clk 0:02:58.8]} 5. Nf3 {[%clk 0:02:59.2]}
5... Be7 {[%clk 0:02:58.4]} 6. d4 {[%clk 0:02:59.4]} 6... exd4 {[%clk
0:02:56.6]} 7. Nxd4 {[%clk 0:02:58.9]} 7... O-O {[%clk 0:02:55.6]} 8. Nc3 {[%clk
0:02:57.7]} 8... d5 {[%clk 0:02:55.8]} 9. Nxc6 {[%clk 0:02:54.7]} 9... bxc6
{[%clk 0:02:55.6]} 10. Qc2 {[%clk 0:02:54.9]} 10... Be6 {[%clk 0:02:53.8]} 11.
Rd1 {[%clk 0:02:54.5]} 11... Qc8 {[%clk 0:02:49.3]} 12. Be2 {[%clk 0:02:53.2]}
12... Bf5 {[%clk 0:02:45.7]} 13. Bd3 {[%clk 0:02:48.9]} 13... Bxd3 {[%clk
0:02:44.8]} 14. Qxd3 {[%clk 0:02:48.3]} 14... Rd8 {[%clk 0:02:45.7]} 15. O-O
{[%clk 0:02:46.7]} 15... Rb8 {[%clk 0:02:44.3]} 16. Qe2 {[%clk 0:02:39]} 16...
Qa6 {[%clk 0:02:43.4]} 17. cxd5 {[%clk 0:02:30.3]} 17... Qxe2 {[%clk 0:02:42.7]}
18. Nxe2 {[%clk 0:02:30.5]} 18... cxd5 {[%clk 0:02:43.1]} 19. Nf4 {[%clk
0:02:29]} 19... c6 {[%clk 0:02:38.9]} 20. Rc1 {[%clk 0:02:29.1]} 20... Rb6
{[%clk 0:02:38.7]} 21. Rc2 {[%clk 0:02:28.5]} 21... c5 {[%clk 0:02:28.5]} 22.
Bxf6 {[%clk 0:02:26.6]} 22... gxf6 {[%clk 0:02:24.3]} 23. Rd1 {[%clk 0:02:26.5]}
23... d4 {[%clk 0:02:23.3]} 24. Rcd2 {[%clk 0:02:05.9]} 24... Rbd6 {[%clk
0:02:19.3]} 25. e4 {[%clk 0:01:56.8]} 25... f5 {[%clk 0:02:04.3]} 26. e5 {[%clk
0:01:55.4]} 26... Ra6 {[%clk 0:02:01.9]} 27. Rc2 {[%clk 0:01:55.3]} 27... Re8
{[%clk 0:01:50.5]} 28. Nd3 {[%clk 0:01:54.9]} 28... Bf8 {[%clk 0:01:45.8]} 29.
f4 {[%clk 0:01:54.9]} 29... Rc8 {[%clk 0:01:45.4]} 30. Rdc1 {[%clk 0:01:54.2]}
30... Rac6 {[%clk 0:01:44.8]} 31. Rc4 {[%clk 0:01:54.5]} 31... a5 {[%clk
0:01:40.5]} 32. Ra4 {[%clk 0:01:50.3]} 32... Ra6 {[%clk 0:01:37.8]} 33. Rxd4
{[%clk 0:01:49.4]} 33... cxd4 {[%clk 0:01:29.5]} 34. Rxc8 {[%clk 0:01:48.3]}
34... Rb6 {[%clk 0:01:24.5]} 35. Rc4 {[%clk 0:01:43]} 1-0

[Event "*** Titled Tuesday Blitz"]
[Site "Chess.com"]
[Date "2020.05.26"]
[Round "5"]
[White "AlexTriapishko"]
[Black "2346PL"]
[Result "1-0"]
[WhiteElo "2733"]
[BlackElo "2504"]
[TimeControl "180+1"]
[EndTime "10:53:34 PDT"]
[Termination "AlexTriapishko won by resignation"]

1. e4 {[%clk 0:03:00.6]} 1... c5 {[%clk 0:02:58.7]} 2. Nf3 {[%clk 0:03:00.7]}
2... Nf6 {[%clk 0:02:59.3]} 3. Nc3 {[%clk 0:02:56.1]} 3... Nc6 {[%clk 0:02:59]}
4. d4 {[%clk 0:02:45.9]} 4... d5 {[%clk 0:02:58.9]} 5. exd5 {[%clk 0:02:16.7]}
5... Nxd5 {[%clk 0:02:59.8]} 6. Bb5 {[%clk 0:02:17.3]} 6... Nxc3 {[%clk
0:02:58]} 7. bxc3 {[%clk 0:02:18.2]} 7... cxd4 {[%clk 0:02:58.4]} 8. O-O {[%clk
0:02:13.3]} 8... a6 {[%clk 0:02:41.1]} 9. Bxc6+ {[%clk 0:01:58.7]} 9... bxc6
{[%clk 0:02:42]} 10. cxd4 {[%clk 0:01:57.3]} 10... e6 {[%clk 0:02:41.6]} 11. Ne5
{[%clk 0:01:56.6]} 11... Bd6 {[%clk 0:02:34.2]} 12. Qf3 {[%clk 0:01:53.1]} 12...
Bxe5 {[%clk 0:02:28.7]} 13. dxe5 {[%clk 0:01:54]} 13... Qd5 {[%clk 0:02:29]} 14.
Qg3 {[%clk 0:01:51.9]} 14... O-O {[%clk 0:02:26.6]} 15. Bh6 {[%clk 0:01:51]}
15... g6 {[%clk 0:02:20.5]} 16. Rfd1 {[%clk 0:01:50.6]} 16... Qa5 {[%clk
0:02:14.8]} 17. Qf4 {[%clk 0:01:38.9]} 17... f5 {[%clk 0:01:56.1]} 18. Bxf8
{[%clk 0:01:33]} 18... Kxf8 {[%clk 0:01:56]} 19. Qg5 {[%clk 0:01:32.6]} 19...
Qxe5 {[%clk 0:01:40.2]} 20. Rab1 {[%clk 0:01:32.6]} 20... Kf7 {[%clk 0:01:34]}
21. h4 {[%clk 0:01:29.1]} 21... Qf6 {[%clk 0:01:31.7]} 22. Qh6 {[%clk
0:01:26.3]} 22... Qg7 {[%clk 0:01:31.6]} 23. Rb7+ {[%clk 0:01:22.2]} 1-0

[Event "*** Titled Tuesday Blitz"]
[Site "Chess.com"]
[Date "2020.05.26"]
[Round "5"]
[White "Escanor89"]
[Black "Gerasimenyuk_Miha"]
[Result "1-0"]
[WhiteElo "2562"]
[BlackElo "2398"]
[TimeControl "180+1"]
[EndTime "10:53:41 PDT"]
[Termination "Escanor89 won by resignation"]

1. c4 {[%clk 0:03:00.9]} 1... c5 {[%clk 0:02:58.8]} 2. Nf3 {[%clk 0:03:00.2]}
2... Nc6 {[%clk 0:02:54.8]} 3. d4 {[%clk 0:02:59.3]} 3... d6 {[%clk 0:02:55.3]}
4. Nc3 {[%clk 0:02:55.5]} 4... cxd4 {[%clk 0:02:56.1]} 5. Nxd4 {[%clk
0:02:54.9]} 5... Nxd4 {[%clk 0:02:56.9]} 6. Qxd4 {[%clk 0:02:54.4]} 6... Nf6
{[%clk 0:02:57.1]} 7. g3 {[%clk 0:02:49.7]} 7... g6 {[%clk 0:02:53.6]} 8. Bg2
{[%clk 0:02:49.5]} 8... Bg7 {[%clk 0:02:46.9]} 9. O-O {[%clk 0:02:48.5]} 9... h5
{[%clk 0:02:45]} 10. Bg5 {[%clk 0:02:41.5]} 10... a6 {[%clk 0:02:36.8]} 11. Rfd1
{[%clk 0:02:37.8]} 11... O-O {[%clk 0:02:31.7]} 12. Qd2 {[%clk 0:02:22]} 12...
Rb8 {[%clk 0:02:29.1]} 13. c5 {[%clk 0:02:17]} 13... Be6 {[%clk 0:02:11.2]} 14.
cxd6 {[%clk 0:02:11.7]} 14... exd6 {[%clk 0:02:10.7]} 15. Qf4 {[%clk 0:01:57.4]}
15... Bf5 {[%clk 0:01:55.2]} 16. e4 {[%clk 0:01:51.6]} 16... Bg4 {[%clk
0:01:29.2]} 17. Rxd6 {[%clk 0:01:47.9]} 17... Be6 {[%clk 0:00:46.5]} 18. Rxd8
{[%clk 0:01:45.2]} 1-0

[Event "*** Titled Tuesday Blitz"]
[Site "Chess.com"]
[Date "2020.05.26"]
[Round "5"]
[White "DACF2905"]
[Black "SaraciNderim"]
[Result "0-1"]
[WhiteElo "2275"]
[BlackElo "2752"]
[TimeControl "180+1"]
[EndTime "10:53:43 PDT"]
[Termination "SaraciNderim won by resignation"]

1. c4 {[%clk 0:03:00.9]} 1... Nf6 {[%clk 0:02:58.5]} 2. Nc3 {[%clk 0:03:00.9]}
2... g6 {[%clk 0:02:57.7]} 3. g3 {[%clk 0:03:01.2]} 3... Bg7 {[%clk 0:02:58]} 4.
Bg2 {[%clk 0:03:01.7]} 4... O-O {[%clk 0:02:58.9]} 5. e4 {[%clk 0:03:00.8]} 5...
c5 {[%clk 0:02:58.8]} 6. Nge2 {[%clk 0:03:00.9]} 6... Nc6 {[%clk 0:02:59]} 7.
O-O {[%clk 0:03:00.7]} 7... d6 {[%clk 0:02:59.4]} 8. d3 {[%clk 0:03:00.8]} 8...
Ne8 {[%clk 0:02:58.8]} 9. f4 {[%clk 0:02:56.2]} 9... Nc7 {[%clk 0:02:59]} 10.
Be3 {[%clk 0:02:55.5]} 10... Ne6 {[%clk 0:02:59.1]} 11. Qd2 {[%clk 0:02:54.1]}
11... Ned4 {[%clk 0:02:59.4]} 12. Rab1 {[%clk 0:02:50.1]} 12... a6 {[%clk
0:02:56.4]} 13. b3 {[%clk 0:02:46]} 13... Rb8 {[%clk 0:02:52]} 14. a4 {[%clk
0:02:40.4]} 14... b5 {[%clk 0:02:51.6]} 15. h3 {[%clk 0:02:34.4]} 15... Bd7
{[%clk 0:02:47.3]} 16. Kh2 {[%clk 0:02:33.3]} 16... Qa5 {[%clk 0:02:46.6]} 17.
axb5 {[%clk 0:02:26.2]} 17... axb5 {[%clk 0:02:46.2]} 18. Rfd1 {[%clk
0:01:21.3]} 18... Nxe2 {[%clk 0:02:37.5]} 19. Nxe2 {[%clk 0:01:19.2]} 19... Qxd2
{[%clk 0:02:33.8]} 20. Bxd2 {[%clk 0:01:19.3]} 20... b4 {[%clk 0:02:29.4]} 21.
Be3 {[%clk 0:01:18.7]} 21... e5 {[%clk 0:02:22.9]} 22. Ra1 {[%clk 0:01:15.2]}
22... exf4 {[%clk 0:02:21.5]} 23. Nxf4 {[%clk 0:01:11.5]} 23... Bxa1 {[%clk
0:02:21]} 24. Rxa1 {[%clk 0:01:11.6]} 24... Ra8 {[%clk 0:02:20.1]} 25. Rb1
{[%clk 0:01:12]} 25... Ra2 {[%clk 0:02:14.3]} 26. Nd5 {[%clk 0:01:12]} 26... Be6
{[%clk 0:02:11.9]} 27. Nc7 {[%clk 0:01:01.9]} 27... Ne5 {[%clk 0:02:06.9]} 28.
d4 {[%clk 0:00:57.8]} 28... cxd4 {[%clk 0:02:06.6]} 29. Bxd4 {[%clk 0:00:58]}
29... Nf3+ {[%clk 0:02:06.9]} 0-1

[Event "*** Titled Tuesday Blitz"]
[Site "Chess.com"]
[Date "2020.05.26"]
[Round "5"]
[White "FMalexhdez"]
[Black "ural58"]
[Result "0-1"]
[WhiteElo "2051"]
[BlackElo "2484"]
[TimeControl "180+1"]
[EndTime "10:53:44 PDT"]
[Termination "ural58 won by resignation"]

1. e4 {[%clk 0:03:00.9]} 1... d5 {[%clk 0:02:57.1]} 2. exd5 {[%clk 0:02:59.3]}
2... Qxd5 {[%clk 0:02:56.9]} 3. Nc3 {[%clk 0:02:58.9]} 3... Qa5 {[%clk
0:02:57.3]} 4. d4 {[%clk 0:02:58.4]} 4... Nf6 {[%clk 0:02:57.7]} 5. Nf3 {[%clk
0:02:44.3]} 5... Nc6 {[%clk 0:02:57]} 6. Bd2 {[%clk 0:02:31.9]} 6... a6 {[%clk
0:02:56.1]} 7. Ne4 {[%clk 0:02:27.6]} 7... Qb6 {[%clk 0:02:55.5]} 8. Nxf6+
{[%clk 0:02:27.4]} 8... gxf6 {[%clk 0:02:56]} 9. d5 {[%clk 0:02:19.2]} 9... Nd4
{[%clk 0:02:40.1]} 10. Nxd4 {[%clk 0:02:16.3]} 10... Qxd4 {[%clk 0:02:39.6]} 11.
Bc3 {[%clk 0:02:07.2]} 11... Qe4+ {[%clk 0:02:31.6]} 12. Qe2 {[%clk 0:02:04.8]}
12... Qxd5 {[%clk 0:02:30.2]} 13. Rd1 {[%clk 0:02:02.2]} 13... Qe6 {[%clk
0:02:28.2]} 14. g3 {[%clk 0:01:57.9]} 14... Qxe2+ {[%clk 0:02:26]} 15. Kxe2
{[%clk 0:01:56.4]} 15... Bd7 {[%clk 0:02:24.3]} 16. Bg2 {[%clk 0:01:55.6]} 16...
O-O-O {[%clk 0:02:24.2]} 17. h3 {[%clk 0:01:53.6]} 17... Bb5+ {[%clk 0:02:23.8]}
18. Ke3 {[%clk 0:01:47.1]} 18... Bh6+ {[%clk 0:02:22.6]} 19. f4 {[%clk
0:01:47.1]} 19... e5 {[%clk 0:02:22.7]} 20. Be4 {[%clk 0:01:35.5]} 20... exf4+
{[%clk 0:02:21.6]} 21. gxf4 {[%clk 0:01:34.9]} 21... Rde8 {[%clk 0:02:02.2]} 22.
Kf3 {[%clk 0:01:33.6]} 22... Rxe4 {[%clk 0:01:57]} 23. Kxe4 {[%clk 0:01:33.4]}
23... Bc6+ {[%clk 0:01:55.5]} 24. Kf5 {[%clk 0:01:33.9]} 24... Bxh1 {[%clk
0:01:53.5]} 25. Rxh1 {[%clk 0:01:32.5]} 25... Re8 {[%clk 0:01:50]} 26. Bxf6
{[%clk 0:01:24.9]} 26... Re2 {[%clk 0:01:48.3]} 27. Rd1 {[%clk 0:01:21.2]} 27...
b5 {[%clk 0:01:47.2]} 28. Rd8+ {[%clk 0:01:16.5]} 28... Kb7 {[%clk 0:01:47.3]}
29. Rd7 {[%clk 0:01:16.1]} 29... Rf2 {[%clk 0:01:40.3]} 30. Be5 {[%clk 0:01:16]}
30... Rxc2 {[%clk 0:01:35.9]} 31. Rxc7+ {[%clk 0:01:13.7]} 31... Rxc7 {[%clk
0:01:34.9]} 0-1

[Event "*** Titled Tuesday Blitz"]
[Site "Chess.com"]
[Date "2020.05.26"]
[Round "5"]
[White "chessplayer9919"]
[Black "ferdipy"]
[Result "1-0"]
[WhiteElo "2484"]
[BlackElo "2257"]
[TimeControl "180+1"]
[EndTime "10:53:59 PDT"]
[Termination "chessplayer9919 won by resignation"]

1. d4 {[%clk 0:03:00.9]} 1... Nf6 {[%clk 0:02:53.8]} 2. c4 {[%clk 0:03:01.8]}
2... e6 {[%clk 0:02:52.1]} 3. Nf3 {[%clk 0:03:01.2]} 3... Bb4+ {[%clk
0:02:48.7]} 4. Bd2 {[%clk 0:03:00.2]} 4... Qe7 {[%clk 0:02:47.4]} 5. g3 {[%clk
0:03:00]} 5... Nc6 {[%clk 0:02:42.6]} 6. Bg2 {[%clk 0:02:59.6]} 6... Bxd2+
{[%clk 0:02:41.3]} 7. Nbxd2 {[%clk 0:02:50]} 7... d6 {[%clk 0:02:39.1]} 8. O-O
{[%clk 0:02:50.2]} 8... a5 {[%clk 0:02:34.2]} 9. e4 {[%clk 0:02:49.1]} 9... e5
{[%clk 0:02:34.1]} 10. d5 {[%clk 0:02:49.5]} 10... Nb8 {[%clk 0:02:34.2]} 11. a3
{[%clk 0:02:43.5]} 11... Na6 {[%clk 0:02:32.5]} 12. b4 {[%clk 0:02:42.4]} 12...
O-O {[%clk 0:02:29.7]} 13. Ne1 {[%clk 0:02:35.4]} 13... Bg4 {[%clk 0:02:27.1]}
14. f3 {[%clk 0:02:35.3]} 14... Bd7 {[%clk 0:02:27]} 15. Nd3 {[%clk 0:02:35.3]}
15... b6 {[%clk 0:02:09.5]} 16. Qc2 {[%clk 0:02:33.6]} 16... c5 {[%clk
0:01:35.9]} 17. dxc6 {[%clk 0:02:31.8]} 17... Bxc6 {[%clk 0:01:35.9]} 18. b5
{[%clk 0:02:32.3]} 18... Bxb5 {[%clk 0:01:30.8]} 19. cxb5 {[%clk 0:02:32.3]}
19... Nc5 {[%clk 0:01:31.7]} 20. Nxc5 {[%clk 0:02:30.2]} 20... dxc5 {[%clk
0:01:32.6]} 21. Nc4 {[%clk 0:02:23.7]} 21... Rab8 {[%clk 0:01:31.6]} 22. f4
{[%clk 0:02:13.7]} 22... exf4 {[%clk 0:01:28.9]} 23. gxf4 {[%clk 0:02:13.6]}
23... Ng4 {[%clk 0:01:29.1]} 24. h3 {[%clk 0:02:09.9]} 24... Nh6 {[%clk
0:01:24.1]} 25. f5 {[%clk 0:02:10.1]} 25... f6 {[%clk 0:01:23.2]} 26. Rae1
{[%clk 0:02:06.4]} 26... Nf7 {[%clk 0:01:22.7]} 27. Qc3 {[%clk 0:01:52.6]} 27...
Qd7 {[%clk 0:01:16.3]} 28. e5 {[%clk 0:01:48.6]} 28... fxe5 {[%clk 0:01:17.2]}
29. Nxe5 {[%clk 0:01:48.6]} 29... Nxe5 {[%clk 0:01:18.1]} 30. Qxe5 {[%clk
0:01:49.2]} 30... Qxb5 {[%clk 0:01:17.1]} 31. f6 {[%clk 0:01:44]} 31... Rxf6
{[%clk 0:00:54.5]} 32. Rxf6 {[%clk 0:01:44.9]} 32... gxf6 {[%clk 0:00:55.2]} 33.
Qxb8+ {[%clk 0:01:42.3]} 1-0

[Event "*** Titled Tuesday Blitz"]
[Site "Chess.com"]
[Date "2020.05.26"]
[Round "5"]
[White "Bigfish1995"]
[Black "Pultis"]
[Result "1-0"]
[WhiteElo "3027"]
[BlackElo "2717"]
[TimeControl "180+1"]
[EndTime "10:54:07 PDT"]
[Termination "Bigfish1995 won on time"]

1. f4 {[%clk 0:03:00.9]} 1... e5 {[%clk 0:02:58.7]} 2. fxe5 {[%clk 0:03:00.2]}
2... d6 {[%clk 0:02:56.1]} 3. exd6 {[%clk 0:03:00.5]} 3... Bxd6 {[%clk
0:02:55.4]} 4. Nf3 {[%clk 0:03:00.9]} 4... g5 {[%clk 0:02:54.4]} 5. g3 {[%clk
0:03:01.6]} 5... g4 {[%clk 0:02:53.9]} 6. Nh4 {[%clk 0:03:01.9]} 6... Ne7 {[%clk
0:02:54.4]} 7. d4 {[%clk 0:02:52]} 7... Ng6 {[%clk 0:02:53.4]} 8. Nxg6 {[%clk
0:02:50.8]} 8... hxg6 {[%clk 0:02:53.6]} 9. Qd3 {[%clk 0:02:49.8]} 9... Bf5
{[%clk 0:02:37.5]} 10. e4 {[%clk 0:02:49.1]} 10... Qe7 {[%clk 0:02:31]} 11. Bg2
{[%clk 0:02:43.6]} 11... Nc6 {[%clk 0:02:16.8]} 12. Nc3 {[%clk 0:02:28.8]} 12...
O-O-O {[%clk 0:02:12.1]} 13. Be3 {[%clk 0:02:27.6]} 13... Rxh2 {[%clk
0:02:04.6]} 14. Rxh2 {[%clk 0:02:26.1]} 14... Bxg3+ {[%clk 0:02:05]} 15. Kf1
{[%clk 0:02:26.7]} 15... Nb4 {[%clk 0:01:57.5]} 16. Bg5 {[%clk 0:02:10.6]} 16...
Qxg5 {[%clk 0:01:45.1]} 17. Qxg3 {[%clk 0:02:10.4]} 17... Nxc2 {[%clk 0:01:45]}
18. Nb5 {[%clk 0:02:05]} 18... Qe7 {[%clk 0:00:26.1]} 19. Rc1 {[%clk 0:01:58.7]}
19... a6 {[%clk 0:00:01.9]} 20. Rxc2 {[%clk 0:01:57.5]} 1-0

[Event "*** Titled Tuesday Blitz"]
[Site "Chess.com"]
[Date "2020.05.26"]
[Round "5"]
[White "kasparicy"]
[Black "MikeSailer"]
[Result "1-0"]
[WhiteElo "2304"]
[BlackElo "2078"]
[TimeControl "180+1"]
[EndTime "10:54:08 PDT"]
[Termination "kasparicy won by checkmate"]

1. e4 {[%clk 0:03:00.9]} 1... d5 {[%clk 0:02:59.5]} 2. exd5 {[%clk 0:03:00.2]}
2... Qxd5 {[%clk 0:02:59.3]} 3. Nf3 {[%clk 0:03:01.1]} 3... Bg4 {[%clk 0:02:59]}
4. Be2 {[%clk 0:03:01]} 4... Nc6 {[%clk 0:02:59.6]} 5. d4 {[%clk 0:03:00.9]}
5... O-O-O {[%clk 0:03:00]} 6. Be3 {[%clk 0:03:01]} 6... Nf6 {[%clk 0:02:59.2]}
7. Nbd2 {[%clk 0:02:59.2]} 7... e5 {[%clk 0:02:56.9]} 8. c4 {[%clk 0:02:58.3]}
8... Qa5 {[%clk 0:02:41.5]} 9. d5 {[%clk 0:02:58.5]} 9... Bxf3 {[%clk
0:02:30.3]} 10. Bxf3 {[%clk 0:02:59.4]} 10... Nd4 {[%clk 0:02:30.7]} 11. O-O
{[%clk 0:02:40.9]} 11... Nxf3+ {[%clk 0:02:24.9]} 12. Nxf3 {[%clk 0:02:39.4]}
12... e4 {[%clk 0:02:12]} 13. Nd4 {[%clk 0:02:32.5]} 13... Bd6 {[%clk
0:02:05.8]} 14. a3 {[%clk 0:02:31.3]} 14... Qa6 {[%clk 0:02:00.8]} 15. Nb5
{[%clk 0:02:28.7]} 15... b6 {[%clk 0:01:21.6]} 16. b4 {[%clk 0:02:15]} 16... h5
{[%clk 0:01:11.8]} 17. Qc2 {[%clk 0:01:56.7]} 17... Kb8 {[%clk 0:00:58.6]} 18.
Nd4 {[%clk 0:01:55.1]} 18... Rde8 {[%clk 0:00:53.1]} 19. Nc6+ {[%clk 0:01:54.2]}
19... Ka8 {[%clk 0:00:52.3]} 20. a4 {[%clk 0:01:53.4]} 20... Bxh2+ {[%clk
0:00:47.4]} 21. Kxh2 {[%clk 0:01:51.7]} 21... Ng4+ {[%clk 0:00:48]} 22. Kg1
{[%clk 0:01:50.7]} 22... Qc8 {[%clk 0:00:37.9]} 23. a5 {[%clk 0:01:46.3]} 23...
b5 {[%clk 0:00:37.6]} 24. cxb5 {[%clk 0:01:45.4]} 24... Qf5 {[%clk 0:00:37.6]}
25. Qc5 {[%clk 0:01:43.9]} 25... Nxe3 {[%clk 0:00:31.4]} 26. Qxa7# {[%clk
0:01:42.9]} 1-0